bitfinex-derivatives/quotes_BTCF0:USTF0_20230105
["timestamp","ask_amount","ask_price","bid_price","bid_amount"]
[1672879664721,0.06281775,16856.0,16855.0,0.06006]
[1672879665147,0.36351775,16856.0,16855.0,0.06006]
[1672879665352,0.35051775,16856.0,16855.0,0.05506]
[1672879665567,0.36351775,16856.0,16855.0,0.10506]
[1672879665883,0.36451775,16856.0,16855.0,0.10406]
[1672879666090,0.36451775,16856.0,16855.0,0.05406]
[1672879666503,0.06381775,16856.0,16855.0,0.05406]
[1672879666829,0.36451775,16856.0,16855.0,0.05406]
[1672879672831,0.3147,16856.0,16855.0,0.05406]
[1672879673040,0.014,16856.0,16855.0,0.05406]
[1672879680493,0.3147,16856.0,16855.0,0.05406]
[1672879697834,0.3147,16856.0,16855.0,0.05398189]
[1672879698992,0.3147,16856.0,16855.0,0.05404189]
[1672879700047,0.3147,16856.0,16855.0,0.05398189]
[1672879700360,0.3647,16856.0,16855.0,0.05398189]
[1672879701095,0.3647,16856.0,16855.0,0.05404189]
[1672879701939,0.064,16856.0,16855.0,0.05404189]
[1672879702251,0.36476,16856.0,16855.0,0.05404189]
[1672879714753,0.06406,16856.0,16855.0,0.05404189]
[1672879714976,0.36476,16856.0,16855.0,0.05404189]
[1672879727575,0.06406,16856.0,16855.0,0.05404189]
[1672879740722,0.36476,16856.0,16855.0,0.05404189]
[1672879745553,0.36476,16856.0,16855.0,0.05391981]
[1672879757533,0.36469008,16856.0,16855.0,0.05391981]
[1672879757749,0.06399008,16856.0,16855.0,0.05391981]
[1672879758067,0.66539008,16856.0,16855.0,0.05391981]
[1672879759108,0.66533008,16856.0,16855.0,0.05385981]
[1672879760368,0.66533008,16856.0,16855.0,0.05391981]
[1672879761532,0.66539008,16856.0,16855.0,0.05391981]
[1672879775193,0.36469008,16856.0,16855.0,0.05391981]
[1672879787279,0.36376,16856.0,16855.0,0.04806]
[1672879791807,0.06306,16856.0,16855.0,0.04806]
[1672879792018,0.66446,16856.0,16855.0,0.04806]
[1672879805882,0.66446,16856.0,16855.0,0.04797178]
[1672879806082,0.6644,16856.0,16855.0,0.04797178]
[1672879810919,0.063,16856.0,16855.0,0.04797178]
[1672879811243,0.6644,16856.0,16855.0,0.04797178]
[1672879838987,0.063,16856.0,16855.0,0.04797178]
[1672879839204,0.6644,16856.0,16855.0,0.04797178]
[1672879849830,0.6644,16856.0,16855.0,0.04783722]
[1672879854771,0.063,16856.0,16855.0,0.04783722]
[1672879855193,0.6644,16856.0,16855.0,0.04783722]
[1672879859074,0.6144,16856.0,16855.0,0.04783722]
[1672879863079,0.3137,16856.0,16855.0,0.04783722]
[1672879889768,0.013,16856.0,16855.0,0.04783722]
[1672879889970,0.3137,16856.0,16855.0,0.04783722]
[1672879901953,0.3137,16856.0,16855.0,0.04768102]
[1672879906368,0.013,16856.0,16855.0,0.04768102]
[1672879948304,0.013,16856.0,16855.0,0.04759436]
[1672879949786,0.013,16856.0,16855.0,0.34829436]
[1672879949989,0.01281529,16856.0,16855.0,0.34829436]
[1672879973857,0.01281529,16856.0,16855.0,0.04759436]
[1672879974064,0.01281529,16856.0,16855.0,0.34829436]
[1672879974277,0.01281529,16856.0,16855.0,0.39829436]
[1672879985621,0.01281529,16856.0,16855.0,0.69899436]
[1672879994994,0.01281529,16856.0,16855.0,0.09759436]
[1672879995198,0.01281529,16856.0,16855.0,0.69899436]
[1672879998253,0.01281529,16856.0,16855.0,1.29119436]
[1672879998457,0.00795244,16856.0,16855.0,1.29119436]
[1672880041252,0.00795244,16856.0,16855.0,0.69899436]
[1672880041567,0.00795244,16856.0,16855.0,0.04759436]
[1672880041882,0.05795244,16856.0,16855.0,0.04759436]
[1672880050817,0.05795244,16856.0,16855.0,0.04737187]
[1672880063221,0.05795244,16856.0,16855.0,0.09737187]
[1672880063855,0.05795244,16856.0,16855.0,0.04737187]
[1672880087731,0.35865244,16856.0,16855.0,0.04737187]
[1672880103055,0.35865244,16856.0,16855.0,0.04721954]
[1672880115042,0.35865244,16856.0,16855.0,0.09721954]
[1672880115253,0.05795244,16856.0,16855.0,0.09721954]
[1672880115568,0.00795244,16856.0,16855.0,0.09721954]
[1672880124196,0.00795244,16856.0,16855.0,0.39721954]
[1672880127134,0.00795244,16856.0,16855.0,0.09721954]
[1672880133222,0.05795244,16856.0,16855.0,0.09721954]
[1672880133868,0.05795244,16856.0,16855.0,0.04721954]
[1672880134288,0.05795244,16856.0,16855.0,0.09721954]
[1672880135251,0.05795244,16856.0,16855.0,0.04721954]
[1672880146381,0.65015244,16856.0,16855.0,1.954e-05]
[1672880150062,0.05795244,16856.0,16855.0,1.954e-05]
[1672880151315,0.95015244,16856.0,16855.0,1.954e-05]
[1672880151735,0.35795244,16856.0,16855.0,1.954e-05]
[1672880156787,0.05795244,16856.0,16855.0,1.954e-05]
[1672880160571,0.05795244,16856.0,16851.0,0.05]
[1672880160778,0.05,16853.0,16851.0,0.05]
[1672880167106,0.3007,16854.0,16852.0,0.3007]
[1672880167317,0.3007,16854.0,16853.0,0.05]
[1672880167834,0.3007,16855.0,16853.0,0.05]
[1672880168049,0.05,16854.0,16853.0,0.05]
[1672880190306,0.05,16854.0,16851.0,0.05]
[1672880191144,0.3007,16853.0,16851.0,0.05]
[1672880191573,0.05,16852.0,16851.0,0.05]
[1672880192203,0.05,16852.0,16850.0,0.3321]
[1672880192420,0.3007,16851.0,16847.0,0.9138]
[1672880192621,0.05,16850.0,16848.0,0.05]
[1672880199556,0.05,16850.0,16848.0,0.04990642]
[1672880201333,0.05,16852.0,16850.0,0.05]
[1672880208590,0.04977734,16852.0,16850.0,0.05]
[1672880211323,0.04977734,16852.0,16848.0,0.04990642]
[1672880211537,0.05,16850.0,16848.0,0.05]
[1672880232134,0.05,16850.0,16848.0,0.3507]
[1672880236223,0.05,16850.0,16846.0,0.3007]
[1672880236437,0.3007,16849.0,16846.0,0.3007]
[1672880236859,0.05,16848.0,16846.0,0.3007]
[1672880237492,0.05,16848.0,16846.0,0.3507]
[1672880237692,0.05,16848.0,16844.0,0.05]
[1672880240548,0.3007,16847.0,16844.0,0.05]
[1672880240748,0.05,16846.0,16844.0,0.05]
[1672880241381,0.3007,16847.0,16844.0,0.05]
[1672880242544,0.05,16848.0,16845.0,0.3007]
[1672880242858,0.05,16848.0,16846.0,0.05]
[1672880244424,0.05,16848.0,16844.0,0.05]
[1672880244425,0.3007,16847.0,16844.0,0.05]
[1672880244634,0.05,16846.0,16844.0,0.05]
[1672880255046,0.3007,16847.0,16844.0,0.05]
[1672880255261,0.3007,16847.0,16844.0,0.04977851]
[1672880258092,0.3007,16847.0,16845.0,0.3007]
[1672880258303,0.3007,16847.0,16846.0,0.05]
[1672880260200,0.3007,16847.0,16844.0,0.04977851]
[1672880260412,0.05,16846.0,16844.0,0.04977851]
[1672880281957,0.3007,16847.0,16844.0,0.04977851]
[1672880282588,0.3007,16847.0,16845.0,0.3007]
[1672880282798,0.05,16848.0,16846.0,0.05]
[1672880285001,0.3507,16849.0,16846.0,0.05]
[1672880288361,0.3507,16849.0,16848.0,0.05]
[1672880289003,0.3507,16849.0,16847.0,0.3007]
[1672880289411,0.3507,16849.0,16848.0,0.05]
[1672880289930,0.3507,16849.0,16847.0,0.3007]
[1672880291305,0.3507,16849.0,16846.0,0.3507]
[1672880298242,0.05,16849.0,16846.0,0.3507]
[1672880301194,0.05,16849.0,16846.0,0.35062785]
[1672880306754,0.05,16849.0,16846.0,0.04992785]
[1672880306972,0.3507,16849.0,16846.0,0.35062785]
[1672880312967,0.3507,16849.0,16845.0,0.05]
[1672880313695,0.6514,16849.0,16845.0,0.05]
[1672880313902,0.3007,16847.0,16845.0,0.05]
[1672880314116,0.05,16846.0,16845.0,0.05]
[1672880316528,0.3007,16847.0,16845.0,0.05]
[1672880316955,0.05,16848.0,16845.0,0.05]
[1672880317582,0.3007,16847.0,16845.0,0.05]
[1672880317798,0.05,16846.0,16845.0,0.05]
[1672880328307,0.05,16846.0,16844.0,0.35047851]
[1672880328516,0.05,16846.0,16844.0,0.3007]
[1672880329156,0.05,16846.0,16843.0,0.3512]
[1672880329364,0.05,16846.0,16844.0,0.05]
[1672880333902,0.3507,16846.0,16844.0,0.05]
[1672880335346,0.35047978,16846.0,16844.0,0.05]
[1672880338928,0.35047978,16846.0,16843.0,0.3512]
[1672880339139,0.35047978,16846.0,16844.0,0.05]
[1672880343025,0.65117978,16846.0,16841.0,0.3166]
[1672880343237,0.3007,16844.0,16840.0,0.3007]
[1672880343445,0.05,16843.0,16841.0,0.05]
[1672880346287,0.05,16843.0,16840.0,0.3507]
[1672880347978,0.05,16843.0,16841.0,0.05]
[1672880348178,0.3507,16843.0,16841.0,0.05]
[1672880348388,0.3507,16843.0,16840.0,0.05]
[1672880351867,0.05,16843.0,16840.0,0.05]
[1672880352071,0.3007,16842.0,16840.0,0.05]
[1672880353338,0.05,16843.0,16840.0,0.05]
[1672880355124,0.05,16843.0,16840.0,0.3507]
[1672880361321,0.3507,16844.0,16840.0,0.3507]
[1672880381812,0.3507,16844.0,16840.0,0.35063318]
[1672880398089,0.6514,16844.0,16840.0,0.35063318]
[1672880403458,0.6514,16844.0,16840.0,0.04993318]
[1672880405668,0.3007,16842.0,16840.0,0.04993318]
[1672880406922,0.6014,16842.0,16838.0,0.3145]
[1672880407239,0.3007,16840.0,16838.0,0.3145]
[1672880407455,0.05,16839.0,16836.0,0.6268]
[1672880407663,0.3007,16840.0,16836.0,0.3007]
[1672880407980,0.3007,16840.0,16837.0,0.05]
[1672880408394,0.05,16839.0,16837.0,0.05]
[1672880408718,0.3007,16840.0,16837.0,0.05]
[1672880410190,0.05,16841.0,16837.0,0.05]
[1672880410385,0.05,16841.0,16839.0,0.05]
[1672880413555,0.05,16841.0,16838.0,0.3007]
[1672880414817,0.05,16841.0,16839.0,0.05]
[1672880423427,0.05,16841.0,16839.0,0.3507]
[1672880427434,0.05,16841.0,16839.0,0.05]
[1672880433848,0.05,16841.0,16839.0,0.04984483]
[1672880435637,0.05,16841.0,16839.0,0.35054483]
[1672880435847,0.3507,16842.0,16839.0,0.35054483]
[1672880438685,0.05,16843.0,16841.0,0.3007]
[1672880438894,0.05,16843.0,16839.0,0.35054483]
[1672880442568,0.05,16843.0,16839.0,0.04984483]
[1672880442778,0.05,16843.0,16841.0,0.05]
[1672880461397,0.05,16843.0,16842.0,0.3007]
[1672880461911,0.065,16843.0,16842.0,0.3007]
[1672880462327,0.05,16843.0,16842.0,0.3007]
[1672880462542,0.065,16843.0,16842.0,0.3117]
[1672880462751,0.015,16843.0,16842.0,0.3117]
[1672880470432,0.015,16843.0,16842.0,0.011]
[1672880470648,0.015,16843.0,16842.0,0.3617]
[1672880475476,0.015,16843.0,16842.0,0.6624]
[1672880481785,0.015,16843.0,16842.0,0.66226825]
[1672880482211,0.015,16843.0,16842.0,1.25446825]
[1672880521963,0.015,16843.0,16842.0,0.06086825]
[1672880522169,0.015,16843.0,16842.0,1.25446825]
[1672880528262,0.015,16843.0,16842.0,1.25422993]
[1672880528898,0.015,16843.0,16842.0,1.34277003]
[1672880529729,0.015,16843.0,16842.0,1.25422993]
[1672880531312,0.015,16843.0,16842.0,1.34277003]
[1672880532473,0.015,16843.0,16842.0,1.25422993]
[1672880532887,0.015,16843.0,16842.0,1.34277003]
[1672880536468,0.015,16843.0,16842.0,1.25422993]
[1672880544042,0.015,16843.0,16842.0,1.34277003]
[1672880545513,0.015,16843.0,16842.0,1.25422993]
[1672880547190,0.015,16843.0,16842.0,1.34277003]
[1672880547401,0.015,16843.0,16842.0,1.25422993]
[1672880554241,0.015,16843.0,16842.0,0.65282993]
[1672880554655,0.015,16843.0,16842.0,1.25422993]
[1672880556550,0.015,16843.0,16842.0,0.65282993]
[1672880556755,0.015,16843.0,16842.0,1.25422993]
[1672880558228,0.015,16843.0,16842.0,0.65282993]
[1672880558440,0.015,16843.0,16842.0,1.25422993]
[1672880562127,0.015,16843.0,16842.0,1.34277003]
[1672880565910,0.015,16843.0,16842.0,1.47544924]
[1672880566435,0.015,16843.0,16842.0,1.25422993]
[1672880573892,0.015,16843.0,16842.0,1.47544924]
[1672880574951,0.015,16843.0,16842.0,1.34277003]
[1672880576947,0.015,16843.0,16842.0,1.47544924]
[1672880577466,0.015,16843.0,16842.0,1.34277003]
[1672880577880,0.015,16843.0,16842.0,1.25422993]
[1672880578093,0.015,16843.0,16842.0,1.34277003]
[1672880578516,0.015,16843.0,16842.0,1.47544924]
[1672880578841,0.015,16843.0,16842.0,1.47591023]
[1672880579153,0.015,16843.0,16842.0,1.34323102]
[1672880580734,0.015,16843.0,16842.0,1.47591023]
[1672880580943,0.015,16843.0,16842.0,1.47574997]
[1672880582519,0.015,16843.0,16842.0,1.34307076]
[1672880583045,0.015,16843.0,16842.0,1.47574997]
[1672880583259,0.015,16843.0,16842.0,1.34307076]
[1672880584418,0.015,16843.0,16842.0,1.47574997]
[1672880585690,0.015,16843.0,16842.0,1.38674888]
[1672880585909,0.015,16843.0,16842.0,1.47573621]
[1672880586212,0.015,16843.0,16842.0,1.343057]
[1672880586954,0.015,16843.0,16842.0,1.38674888]
[1672880588532,0.015,16843.0,16842.0,1.47572027]
[1672880588952,0.015,16843.0,16842.0,1.25406967]
[1672880596401,0.015,16843.0,16842.0,2.05539333]
[1672880596619,0.015,16843.0,16842.0,1.92271412]
[1672880597134,0.015,16843.0,16842.0,2.14500144]
[1672880597343,0.015,16843.0,16842.0,2.14500086]
[1672880597755,0.015,16843.0,16842.0,1.92323043]
[1672880599127,0.015,16843.0,16842.0,2.14500086]
[1672880600807,0.015,16843.0,16842.0,1.92323043]
[1672880603952,0.015,16843.0,16842.0,1.25406967]
[1672880605339,0.35,16848.0,16842.0,1.33257851]
[1672880605537,0.008,16843.0,16842.0,0.86617851]
[1672880605957,0.008,16843.0,16842.0,1.46757851]
[1672880606483,0.008,16843.0,16842.0,1.3786]
[1672880607322,0.008,16843.0,16842.0,1.46757851]
[1672880607751,0.008,16843.0,16842.0,1.3786]
[1672880611518,0.008,16843.0,16842.0,2.04776762]
[1672880613514,0.008,16843.0,16842.0,2.26953805]
[1672880614471,0.008,16843.0,16842.0,2.04776762]
[1672880615517,0.008,16843.0,16842.0,2.26953805]
[1672880615724,0.008,16843.0,16842.0,2.04776762]
[1672880618775,0.008,16843.0,16842.0,2.0916054]
[1672880618982,0.008,16843.0,16842.0,1.51212123]
[1672880619186,0.008,16843.0,16842.0,1.60113644]
[1672880623608,0.008,16843.0,16842.0,1.51212123]
[1672880623925,0.008,16843.0,16842.0,1.60116666]
[1672880624131,0.008,16843.0,16842.0,1.51212123]
[1672880625285,0.008,16843.0,16842.0,1.60116689]
[1672880626341,0.008,16843.0,16842.0,2.09160209]
[1672880627709,0.008,16843.0,16842.0,2.26971141]
[1672880628121,0.008,16843.0,16842.0,2.09160209]
[1672880630114,0.008,16843.0,16842.0,2.26972873]
[1672880631593,0.008,16843.0,16842.0,2.09160209]
[1672880632427,0.008,16843.0,16842.0,2.0914742]
[1672880638954,0.008,16843.0,16842.0,1.4900742]
[1672880639162,0.008,16843.0,16842.0,2.0914742]
[1672880639373,0.008,16843.0,16842.0,1.86970377]
[1672880639800,0.008,16843.0,16842.0,2.09239912]
[1672880640011,0.008,16843.0,16842.0,1.86970377]
[1672880640639,0.008,16843.0,16842.0,2.09240114]
[1672880641051,0.008,16843.0,16842.0,1.86970377]
[1672880641471,0.008,16843.0,16842.0,2.04785887]
[1672880644308,0.008,16843.0,16842.0,1.51208628]
[1672880644732,0.008,16843.0,16842.0,2.18146274]
[1672880645686,0.008,16843.0,16842.0,1.51208628]
[1672880647257,0.008,16843.0,16842.0,1.69024138]
[1672880647481,0.008,16843.0,16842.0,2.18146325]
[1672880647689,0.008,16843.0,16842.0,1.51208628]
[1672880647901,0.008,16843.0,16842.0,5.28208628]
[1672880648523,0.008,16843.0,16842.0,5.95146136]
[1672880649054,0.008,16843.0,16842.0,6.47641087]
[1672880650006,0.008,16843.0,16842.0,5.86238596]
[1672880653677,0.008,16843.0,16842.0,5.63969209]
[1672880654311,0.008,16843.0,16842.0,5.86238596]
[1672880654732,0.008,16843.0,16842.0,5.63969209]
[1672880655147,0.008,16843.0,16842.0,5.86238596]
[1672880655990,0.008,16843.0,16842.0,5.63969209]
[1672880656520,0.008,16843.0,16842.0,5.14847211]
[1672880658836,0.008,16843.0,16842.0,5.81785136]
[1672880659790,0.008,16843.0,16842.0,5.95145771]
[1672880660731,0.008,16843.0,16842.0,5.28207846]
[1672880661254,0.008,16843.0,16842.0,5.95144779]
[1672880661466,0.008,16843.0,16842.0,5.28207846]
[1672880662197,0.008,16843.0,16842.0,5.37114895]
[1672880663877,0.008,16843.0,16842.0,6.04054756]
[1672880665028,0.008,16843.0,16842.0,5.81785369]
[1672880666181,0.008,16843.0,16842.0,5.8623973]
[1672880666813,0.008,16843.0,16842.0,6.04052892]
[1672880668280,0.008,16843.0,16842.0,5.81783505]
[1672880669543,0.008,16843.0,16842.0,6.04052892]
[1672880669867,0.008,16843.0,16842.0,6.04052541]
[1672880670599,0.008,16843.0,16842.0,5.81783154]
[1672880671441,0.008,16843.0,16842.0,5.23753826]
[1672880677534,0.008,16843.0,16842.0,5.2373476]
[1672880678064,0.008,16843.0,16842.0,4.6359476]
[1672880678281,0.008,16843.0,16842.0,5.2373476]
[1672880679127,0.008,16843.0,16842.0,5.81764952]
[1672880685852,0.008,16843.0,16842.0,5.21624952]
[1672880686164,0.008,16843.0,16842.0,5.81764952]
[1672880686378,0.008,16843.0,16842.0,5.23733414]
[1672880692261,0.008,16843.0,16842.0,5.14828145]
[1672880692477,0.008,16843.0,16842.0,5.23733414]
[1672880694052,0.008,16843.0,16842.0,5.81764598]
[1672880696664,0.008,16843.0,16842.0,5.9512384]
[1672880696881,0.008,16843.0,16842.0,5.81764598]
[1672880698466,0.008,16843.0,16842.0,5.28187583]
[1672880698988,0.008,16843.0,16842.0,5.46000394]
[1672880699199,0.008,16843.0,16842.0,5.81765218]
[1672880700451,0.008,16843.0,16842.0,5.95125473]
[1672880700675,0.008,16843.0,16842.0,5.81765218]
[1672880700885,0.008,16843.0,16842.0,5.95125579]
[1672880701084,0.008,16843.0,16842.0,5.81765218]
[1672880701505,0.008,16843.0,16842.0,5.23734872]
[1672880708979,0.008,16843.0,16842.0,5.81765342]
[1672880712963,0.008,16843.0,16842.0,5.95128229]
[1672880713180,0.008,16843.0,16842.0,2.04765342]
[1672880713595,0.008,16843.0,16842.0,5.81765342]
[1672880717910,0.008,16843.0,16842.0,2.04765342]
[1672880718227,0.008,16843.0,16842.0,1.46736977]
[1672880718441,0.008,16843.0,16842.0,1.60099665]
[1672880718651,0.008,16843.0,16842.0,1.46736977]
[1672880721799,0.008,16843.0,16842.0,1.60095484]
[1672880722007,0.008,16843.0,16842.0,1.46732796]
[1672880722218,0.008,16843.0,16842.0,1.60095484]
[1672880723065,0.008,16843.0,16842.0,1.46732796]
[1672880723996,0.008,16843.0,16842.0,1.37828145]
[1672880725789,0.008,16843.0,16842.0,0.77688145]
[1672880726000,0.008,16843.0,16842.0,1.37828145]
[1672880727683,0.008,16843.0,16842.0,0.77670376]
[1672880728214,0.008,16843.0,16842.0,1.37810376]
[1672880731474,0.008,16843.0,16842.0,1.46715027]
[1672880732838,0.008,16843.0,16842.0,0.86575027]
[1672880733050,0.008,16843.0,16842.0,1.46715027]
[1672880739035,0.008,16843.0,16842.0,1.37810376]
[1672880740396,0.008,16843.0,16842.0,0.77670376]
[1672880740608,0.008,16843.0,16842.0,1.37810376]
[1672880743237,0.008,16843.0,16842.0,5.14810376]
[1672880745653,0.008,16843.0,16842.0,1.37810376]
[1672880746693,0.008,16843.0,16842.0,1.46715027]
[1672880750069,0.008,16843.0,16842.0,0.86575027]
[1672880750395,0.008,16843.0,16842.0,1.46715027]
[1672880753136,0.008,16843.0,16842.0,1.60077715]
[1672880753662,0.008,16843.0,16842.0,1.46715027]
[1672880753867,0.008,16843.0,16842.0,1.16645027]
[1672880754077,0.008,16843.0,16842.0,1.46715027]
[1672880754288,0.008,16843.0,16842.0,1.60077715]
[1672880755877,0.008,16843.0,16842.0,1.46715027]
[1672880756497,0.008,16843.0,16842.0,1.60077715]
[1672880757214,0.008,16843.0,16842.0,1.51173064]
[1672880759116,0.008,16843.0,16842.0,1.60082384]
[1672880759939,0.008,16843.0,16842.0,1.51173064]
[1672880760888,0.008,16843.0,16842.0,0.91033064]
[1672880761104,0.008,16843.0,16842.0,1.51173064]
[1672880761623,0.008,16843.0,16842.0,1.37810376]
[1672880768129,0.008,16843.0,16842.0,0.4357]
[1672880768130,0.308,16843.0,16842.0,0.4357]
[1672880768659,0.05,16842.0,16840.0,0.3007]
[1672880770663,0.066,16842.0,16840.0,0.3007]
[1672880776359,0.3,16841.0,16840.0,0.3007]
[1672880776565,0.3,16841.0,16838.0,0.3007]
[1672880776991,0.05,16840.0,16838.0,0.3007]
[1672880777728,0.05,16840.0,16838.0,0.3507]
[1672880777944,0.05,16840.0,16838.0,0.3007]
[1672880778352,0.064,16840.0,16838.0,0.3007]
[1672880780557,0.064,16840.0,16838.0,0.3507]
[1672880782050,0.064,16840.0,16839.0,0.05]
[1672880783407,0.05,16840.0,16839.0,0.05]
[1672880783616,0.065,16840.0,16839.0,0.05]
[1672880788966,0.065,16840.0,16838.0,0.3507]
[1672880790337,0.05,16840.0,16839.0,0.05]
[1672880790552,0.064,16840.0,16839.0,0.05]
[1672880791091,0.065,16840.0,16839.0,0.05]
[1672880791502,0.05,16840.0,16839.0,0.05]
[1672880791705,0.058,16840.0,16839.0,0.05]
[1672880792744,0.058,16840.0,16838.0,0.3507]
[1672880793368,0.058,16840.0,16839.0,0.05]
[1672880794114,0.063,16840.0,16839.0,0.05]
[1672880794420,0.05,16840.0,16839.0,0.05]
[1672880794638,0.058,16840.0,16839.0,0.05]
[1672880796624,0.058,16840.0,16838.0,0.3007]
[1672880796950,0.058,16840.0,16838.0,0.3507]
[1672880797354,0.058,16840.0,16838.0,0.3007]
[1672880797781,0.063,16840.0,16838.0,0.3007]
[1672880802519,0.063,16840.0,16839.0,0.05]
[1672880803572,0.063,16840.0,16838.0,0.3007]
[1672880803783,0.05,16840.0,16838.0,0.3007]
[1672880804107,0.058,16840.0,16838.0,0.3007]
[1672880804828,0.05,16840.0,16838.0,0.3007]
[1672880805034,0.063,16840.0,16838.0,0.3007]
[1672880806833,0.063,16840.0,16837.0,0.05]
[1672880807034,0.063,16840.0,16839.0,0.05]
[1672880807882,0.058,16840.0,16838.0,0.3007]
[1672880809461,0.058,16840.0,16839.0,0.05]
[1672880809978,0.058,16840.0,16838.0,0.3007]
[1672880810400,0.05,16839.0,16837.0,0.05]
[1672880811449,0.066,16839.0,16837.0,0.05]
[1672880820295,0.066,16839.0,16836.0,0.3507]
[1672880820713,0.066,16839.0,16837.0,0.05]
[1672880821338,0.05,16839.0,16837.0,0.05]
[1672880821660,0.3007,16838.0,16836.0,0.3507]
[1672880821878,0.05,16837.0,16836.0,0.3507]
[1672880823655,0.05,16837.0,16835.0,0.05]
[1672880823860,0.065,16837.0,16835.0,0.05]
[1672880824594,0.05,16837.0,16835.0,0.05]
[1672880824825,0.064,16837.0,16835.0,0.05]
[1672880825441,0.064,16837.0,16834.0,0.05]
[1672880828395,0.064,16837.0,16834.0,0.6422]
[1672880830497,0.064,16837.0,16834.0,0.05]
[1672880830814,0.05,16837.0,16834.0,0.05]
[1672880831013,0.064,16837.0,16834.0,0.05]
[1672880831648,0.3007,16836.0,16834.0,0.05]
[1672880831858,0.05,16835.0,16834.0,0.05]
[1672880833119,0.05,16835.0,16833.0,0.3507]
[1672880833337,0.05,16835.0,16833.0,0.05]
[1672880833757,0.064,16835.0,16833.0,0.05]
[1672880840694,0.05,16835.0,16833.0,0.05]
[1672880840904,0.064,16835.0,16833.0,0.05]
[1672880841114,0.064,16835.0,16832.0,0.3007]
[1672880841327,0.064,16835.0,16831.0,0.05]
[1672880841537,0.3007,16834.0,16831.0,0.05]
[1672880841955,0.05,16833.0,16831.0,0.05]
[1672880843006,0.064,16833.0,16831.0,0.05]
[1672880845429,0.064,16833.0,16830.0,0.3507]
[1672880846152,0.064,16833.0,16831.0,0.05]
[1672880847102,0.05,16833.0,16831.0,0.05]
[1672880847318,0.064,16833.0,16831.0,0.05]
[1672880851626,0.063,16833.0,16831.0,0.05]
[1672880857517,0.063,16833.0,16830.0,0.3507]
[1672880857935,0.063,16833.0,16831.0,0.05]
[1672880859625,0.063,16833.0,16830.0,0.3507]
[1672880859836,0.066,16833.0,16830.0,0.3507]
[1672880860145,0.05,16833.0,16830.0,0.3507]
[1672880860362,0.063,16833.0,16830.0,0.3507]
[1672880860779,0.066,16833.0,16831.0,0.05]
[1672880861191,0.066,16833.0,16830.0,0.3507]
[1672880862252,0.063,16833.0,16830.0,0.3507]
[1672880862669,0.05,16833.0,16830.0,0.3507]
[1672880862990,0.066,16833.0,16830.0,0.3507]
[1672880864035,2.816,16833.0,16830.0,0.3507]
[1672880864451,2.816,16833.0,16830.0,0.35057485]
[1672880865394,2.816,16833.0,16830.0,0.30057485]
[1672880865607,2.816,16833.0,16829.0,0.91507476]
[1672880865816,2.816,16833.0,16830.0,0.05]
[1672880867847,0.05,16831.0,16830.0,0.05]
[1672880868270,0.05,16831.0,16829.0,0.91507476]
[1672880868675,0.05,16831.0,16830.0,0.05]
[1672880868888,0.066,16831.0,16830.0,0.05]
[1672880869319,0.05,16831.0,16830.0,0.05]
[1672880869527,0.065,16831.0,16830.0,0.05]
[1672880870154,0.066,16831.0,16830.0,0.05]
[1672880870689,1.45312524,16828.0,16827.0,0.8929]
[1672880870891,1.45312524,16828.0,16827.0,0.38979507]
[1672880871203,1.45312524,16828.0,16827.0,0.43979507]
[1672880871843,1.45312524,16828.0,16827.0,0.57342195]
[1672880872361,1.46712524,16828.0,16827.0,0.57342195]
[1672880872567,1.46712524,16828.0,16827.0,0.43979507]
[1672880872780,1.46712524,16828.0,16827.0,0.48432688]
[1672880874463,1.46693834,16828.0,16827.0,0.48432688]
[1672880875411,1.46693834,16828.0,16827.0,0.57333744]
[1672880875618,1.46693834,16828.0,16827.0,0.43971056]
[1672880875824,1.46693834,16828.0,16827.0,0.57333744]
[1672880876027,1.46693834,16828.0,16827.0,0.48432688]
[1672880876240,1.46693834,16828.0,16827.0,0.66245499]
[1672880876455,1.46693834,16828.0,16827.0,0.48432688]
[1672880877076,1.46693834,16828.0,16827.0,1.02048289]
[1672880878638,1.46693834,16828.0,16827.0,1.24317676]
[1672880879065,1.46693834,16828.0,16827.0,1.02048289]
[1672880879278,1.46693834,16828.0,16827.0,1.24317676]
[1672880880005,1.46693834,16828.0,16827.0,1.06504865]
[1672880881382,1.46693834,16828.0,16827.0,1.02053517]
[1672880881605,1.46693834,16828.0,16827.0,1.24322904]
[1672880881818,1.46693834,16828.0,16827.0,1.02053517]
[1672880882332,1.46693834,16828.0,16827.0,1.06504865]
[1672880882754,1.46693834,16828.0,16827.0,1.02053316]
[1672880883594,1.46693834,16828.0,16827.0,0.84235478]
[1672880883805,1.46693834,16828.0,16827.0,1.02053177]
[1672880884434,1.17073834,16828.0,16827.0,0.84235478]
[1672880884642,0.93045816,16828.0,16827.0,1.10958618]
[1672880884855,0.83985816,16828.0,16827.0,5.23587075]
[1672880885069,0.74205816,16828.0,16827.0,5.85048455]
[1672880885391,0.3074,16834.0,16828.0,0.05]
[1672880885603,0.3074,16834.0,16832.0,0.98197135]
[1672880885808,0.05,16835.0,16833.0,0.05]
[1672880886547,0.008,16834.0,16833.0,0.05]
[1672880888020,0.3507,16836.0,16833.0,0.052]
[1672880888021,0.065,16835.0,16833.0,0.052]